[Event "8th Ali Ipek Tournament 2020"]
[Site "Ankara"]
[Date "2020.03.07"]
[Round "5.10"]
[White "Ersahince, Umut Utku"]
[Black "Soku, Mustafa Attila"]
[Result "1-0"]
[ECO "B06"]
[WhiteElo "1645"]
[BlackElo "1506"]
[Annotator "NA RC"]
[PlyCount "119"]
[EventDate "2020.03.04"]
[EventType "swiss"]
[EventCountry "TUR"]
[SourceTitle "playchess.com"]
[Source "ChessBase"]
[SourceQuality "1"]
[TimeControl "5400+30"]

1. e4 {[%emt 0:00:30]} g6 {[%emt 0:02:30]} 2. d4 {[%emt 0:00:30]} Bg7 {[%emt 0:00:30]} 3. Nf3 {[%emt 0:00:30]} d6 {[%emt 0:00:00]} 4. Bd3 {[%emt 0:00:00]} a6 {[%emt 0:00:00]} 5. a4 {[%emt 0:00:00]} b6 {[%emt 0:00:00]} 6. O-O {[%emt 0:00:00]} Nd7 {[%emt 0:00:00]} 7. Nbd2 {[%emt 0:00:00]} e6 {[%emt 0:01:30]} 8. Re1 {[%emt 0:01:30]} Ne7 {[%emt 0:00:30]} 9. Nc4 {[%emt 0:04:30]} O-O {[%emt 0:03:30]} 10. c3 {[%emt 0:03:30]} Bb7 {[%emt 0:02:30]} 11. Bf4 {[%emt 0:03:30]} Rc8 {[%emt 0:07:30]} 12. Qd2 {[%emt 0:01:30]} f6 {[%emt 0:11:30]} 13. Rad1 {[%emt 0:02:30]} e5 {[%emt 0:01:30]} 14. dxe5 {[%emt 0:03:30]} Nxe5 {[%emt 0:00:00]} 15. Ncxe5 {[%emt 0:00:30]} dxe5 {[%emt 0:06:00]} 16. Be3 {[%emt 0:00:30]} Kh8 {[%emt 0:04:30]} 17. Qe2 {[%emt 0:05:30]} Qe8 {[%emt 0:11:30]} 18. Bxa6 {[%emt 0:18:30]} Bxa6 {[%emt 0:00:30]} 19. Qxa6 {[%emt 0:00:30]} Ra8 {[%emt 0:00:00]} 20. Qb7 {[%emt 0:00:30]} Qc8 {[%emt 0:05:00]} 21. Qxc8 {[%emt 0:00:30]} Rfxc8 {[%emt 0:00:30]} 22. b3 {[%emt 0:07:30]} Nc6 {[%emt 0:02:30]} 23. Nd2 {[%emt 0:04:30]} Rd8 {[%emt 0:03:30]} 24. Nc4 {[%emt 0:01:30]} Kg8 {[%emt 0:02:30]} 25. Kf1 {[%emt 0:01:30]} Kf7 {[%emt 0:00:30]} 26. Ke2 {[%emt 0:00:00]} Ke6 {[%emt 0:00:30]} 27. Rd2 {[%emt 0:01:00]} f5 {[%emt 0:05:30]} 28. f3 {[%emt 0:01:30]} f4 {[%emt 0:01:30]} 29. Bf2 {[%emt 0:00:30]} Rxd2+ {[%emt 0:00:30]} 30. Kxd2 {[%emt 0:00:30]} Rd8+ {[%emt 0:00:30]} 31. Kc2 {[%emt 0:00:00]} g5 {[%emt 0:00:00]} 32. Ra1 {[%emt 0:02:00]} Ra8 {[%emt 0:05:00]} 33. Na3 {[%emt 0:01:30]} Bf6 {[%emt 0:00:30]} 34. Nb5 {[%emt 0:01:30]} Bd8 {[%emt 0:01:30]} 35. Rd1 {[%emt 0:01:30]} Ne7 {[%emt 0:01:30]} 36. Kb2 {[%emt 0:01:30]} c6 {[%emt 0:01:30]} 37. Na3 {[%emt 0:02:30]} Bc7 {[%emt 0:00:00]} 38. Nc4 {[%emt 0:01:30]} c5 {[%emt 0:00:00]} 39. Na3 {[%emt 0:00:30]} Rd8 {[%emt 0:01:30]} 40. Rxd8 {[%emt 0:00:30]} Bxd8 {[%emt 0:00:00]} 41. b4 {[%emt 0:00:30]} cxb4 {[%emt 0:01:00]} 42. cxb4 {[%emt 0:00:30]} Nc6 {[%emt 0:00:30]} 43. Kc3 {[%emt 0:00:30]} Nb8 {[%emt 0:00:30]} 44. Kc4 {[%emt 0:03:30]} Nc6 {[%emt 0:02:31]} 45. Nc2 {[%emt 0:01:30]} Na7 {[%emt 0:01:18]} 46. Na3 {[%emt 0:02:30]} h5 {[%emt 0:00:37]} 47. a5 {[%emt 0:05:36]} Nc8 {[%emt 0:02:19]} 48. a6 {[%emt 0:03:05]} Kd6 {[%emt 0:01:29]} 49. Nb5+ {[%emt 0:06:27]} Kc6 {[%emt 0:00:25]} 50. a7 {[%emt 0:00:37]} Kb7 {[%emt 0:00:30]} 51. Kd5 {[%emt 0:00:00]} Nxa7 {[%emt 0:00:13]} 52. Nxa7 {[%emt 0:00:43]} Kxa7 {[%emt 0:00:06]} 53. b5 {[%emt 0:00:21]} Bc7 {[%emt 0:00:09]} 54. h3 {[%emt 0:00:33]} Kb7 {[%emt 0:00:29]} 55. Be1 {[%emt 0:00:30]} Kc8 {[%emt 0:01:32]} 56. Kc6 {[%emt 0:01:01]} Kd8 {[%emt 0:00:30]} 57. Bf2 {[%emt 0:00:00]} Bb8 {[%emt 0:00:42]} 58. Bxb6+ {[%emt 0:00:10]} Ke7 {[%emt 0:00:04]} 59. Bc5+ {[%emt 0:00:07]} Ke6 {[%emt 0:00:21]} 60. Kb7 {[%emt 0:00:03]} 1-0

[Event "8th Ali Ipek Tournament 2020"]
[Site "Ankara"]
[Date "2020.03.07"]
[Round "5.11"]
[White "Pamuk, Yagiz"]
[Black "Ceylan, Arda (Ali Riza)"]
[Result "0-1"]
[ECO "C14"]
[WhiteElo "1385"]
[BlackElo "1637"]
[Annotator "NA RC"]
[PlyCount "64"]
[EventDate "2020.03.04"]
[EventType "swiss"]
[EventCountry "TUR"]
[SourceTitle "playchess.com"]
[Source "ChessBase"]
[SourceQuality "1"]
[TimeControl "5400+30"]

1. e4 {[%emt 0:00:30]} e6 {[%emt 0:00:30]} 2. d4 {[%emt 0:00:30]} d5 {[%emt 0:00:00]} 3. Nc3 {[%emt 0:00:00]} Nf6 {[%emt 0:00:00]} 4. Bg5 {[%emt 0:00:00]} Be7 {[%emt 0:00:30]} 5. e5 {[%emt 0:00:00]} Nfd7 {[%emt 0:00:00]} 6. Bxe7 {[%emt 0:00:00]} Qxe7 {[%emt 0:00:00]} 7. f4 {[%emt 0:00:00]} a6 {[%emt 0:00:00]} 8. Nf3 {[%emt 0:01:00]} c5 {[%emt 0:00:00]} 9. dxc5 {[%emt 0:00:00]} Nc6 {[%emt 0:00:30]} 10. Bd3 {[%emt 0:01:00]} Qxc5 {[%emt 0:01:30]} 11. Qd2 {[%emt 0:00:30]} O-O {[%emt 0:00:30]} 12. O-O-O {[%emt 0:02:30]} b5 {[%emt 0:00:30]} 13. Kb1 {[%emt 0:01:30]} b4 {[%emt 0:00:30]} 14. Ne2 {[%emt 0:01:30]} a5 {[%emt 0:00:30]} 15. Ned4 {[%emt 0:10:30]} Nxd4 {[%emt 0:02:30]} 16. Nxd4 {[%emt 0:00:30]} Ba6 {[%emt 0:07:30]} 17. Bxa6 {[%emt 0:01:30]} Rxa6 {[%emt 0:00:30]} 18. Rhe1 {[%emt 0:01:30]} a4 {[%emt 0:10:30]} 19. Re3 {[%emt 0:04:30]} Nb6 {[%emt 0:04:30]} 20. Rh3 {[%emt 0:04:30]} Nc4 {[%emt 0:02:30]} 21. Qf2 {[%emt 0:02:30]} Rfa8 {[%emt 0:07:30]} 22. Qh4 {[%emt 0:01:30]} h6 {[%emt 0:00:00]} 23. Rg3 {[%emt 0:04:30]} Kh7 {[%emt 0:03:00]} 24. Qg4 {[%emt 0:03:30]} g6 {[%emt 0:03:30]} 25. Rh3 {[%emt 0:00:30]} b3 {[%emt 0:02:30]} 26. Qg5 {[%emt 0:03:30]} bxa2+ {[%emt 0:03:30]} 27. Ka1 {[%emt 0:00:30]} h5 {[%emt 0:01:30]} 28. g4 {[%emt 0:00:30]} Qb4 {[%emt 0:02:30]} 29. Nb3 {[%emt 0:00:30]} a3 {[%emt 0:00:30]} 30. Rxh5+ {[%emt 0:04:30]} Kg8 {[%emt 0:01:30]} 31. Rb1 {[%emt 0:01:30]} axb2+ {[%emt 0:00:30]} 32. Rxb2 {[%emt 0:00:30]} Qe1+ {[%emt 0:00:00]} 0-1

[Event "8th Ali Ipek Tournament 2020"]
[Site "Ankara"]
[Date "2020.03.07"]
[Round "5.12"]
[White "Ergani, Efe"]
[Black "Bilen, Tuna"]
[Result "1-0"]
[ECO "D17"]
[WhiteElo "1668"]
[BlackElo "1367"]
[Annotator "NA RC"]
[PlyCount "73"]
[EventDate "2020.03.04"]
[EventType "swiss"]
[EventCountry "TUR"]
[SourceTitle "playchess.com"]
[Source "ChessBase"]
[SourceQuality "1"]
[TimeControl "5400+30"]

1. Nf3 {[%emt 0:00:30]} d5 {[%emt 0:00:30]} 2. c4 {[%emt 0:00:00]} c6 {[%emt 0:00:00]} 3. d4 {[%emt 0:01:00]} Nf6 {[%emt 0:00:00]} 4. Nc3 {[%emt 0:00:30]} dxc4 {[%emt 0:00:00]} 5. a4 {[%emt 0:00:00]} Bf5 {[%emt 0:00:00]} 6. Ne5 {[%emt 0:00:00]} e6 {[%emt 0:01:30]} 7. Nxc4 {[%emt 0:00:30]} Bb4 {[%emt 0:01:30]} 8. Bg5 {[%emt 0:13:30]} h6 {[%emt 0:03:30]} 9. Bh4 {[%emt 0:00:30]} O-O {[%emt 0:00:00]} 10. e3 {[%emt 0:01:30]} Nbd7 {[%emt 0:05:00]} 11. Be2 {[%emt 0:01:30]} c5 {[%emt 0:13:30]} 12. O-O {[%emt 0:03:30]} Qe7 {[%emt 0:03:30]} 13. Bf3 {[%emt 0:03:30]} g5 {[%emt 0:06:30]} 14. Bg3 {[%emt 0:00:30]} cxd4 {[%emt 0:02:30]} 15. Qxd4 {[%emt 0:06:30]} Bc5 {[%emt 0:02:30]} 16. Qd1 {[%emt 0:01:30]} Rad8 {[%emt 0:06:30]} 17. Bc7 {[%emt 0:05:30]} Rc8 {[%emt 0:00:30]} 18. Nb5 {[%emt 0:00:30]} Nb6 {[%emt 0:09:30]} 19. Bd6 {[%emt 0:09:30]} Bxd6 {[%emt 0:03:30]} 20. Qxd6 {[%emt 0:01:30]} Qxd6 {[%emt 0:11:30]} 21. Ncxd6 {[%emt 0:00:30]} Rc2 {[%emt 0:00:00]} 22. Nxf5 {[%emt 0:06:30]} exf5 {[%emt 0:00:00]} 23. b3 {[%emt 0:00:30]} a6 {[%emt 0:04:30]} 24. Nd4 {[%emt 0:00:30]} Ne4 {[%emt 0:01:30]} 25. Nxc2 {[%emt 0:00:30]} Rc8 {[%emt 0:00:00]} 26. Bxe4 {[%emt 0:00:00]} fxe4 {[%emt 0:00:00]} 27. Nd4 {[%emt 0:00:00]} a5 {[%emt 0:00:00]} 28. Rfc1 {[%emt 0:00:00]} Rxc1+ {[%emt 0:00:00]} 29. Rxc1 {[%emt 0:00:00]} Nd5 {[%emt 0:00:30]} 30. Rc5 {[%emt 0:00:30]} Nb4 {[%emt 0:00:00]} 31. Rxa5 {[%emt 0:00:00]} b6 {[%emt 0:00:00]} 32. Rb5 {[%emt 0:00:00]} Nd3 {[%emt 0:00:30]} 33. Rxb6 {[%emt 0:00:30]} Nc5 {[%emt 0:00:30]} 34. a5 {[%emt 0:00:00]} Kf8 {[%emt 0:00:00]} 35. a6 {[%emt 0:00:00]} Nxa6 {[%emt 0:00:00]} 36. Rxa6 {[%emt 0:00:30]} Ke7 {[%emt 0:00:00]} 37. Rxh6 {[%emt 0:00:00]} 1-0

[Event "8th Ali Ipek Tournament 2020"]
[Site "Ankara"]
[Date "2020.03.07"]
[Round "5.13"]
[White "Kamisli, Yigit"]
[Black "Saltik, Suleyman"]
[Result "1-0"]
[ECO "A57"]
[WhiteElo "1393"]
[BlackElo "1658"]
[Annotator "NA RC"]
[PlyCount "69"]
[EventDate "2020.03.04"]
[EventType "swiss"]
[EventCountry "TUR"]
[SourceTitle "playchess.com"]
[Source "ChessBase"]
[SourceQuality "1"]
[TimeControl "5400+30"]

1. d4 {[%emt 0:00:30]} Nf6 {[%emt 0:00:30]} 2. Nf3 {[%emt 0:00:30]} c5 {[%emt 0:00:30]} 3. d5 {[%emt 0:00:30]} b5 {[%emt 0:01:30]} 4. c4 {[%emt 0:18:30]} Bb7 {[%emt 0:00:30]} 5. b3 {[%emt 0:10:30]} g6 {[%emt 0:01:30]} 6. Bb2 {[%emt 0:00:30]} Bg7 {[%emt 0:01:30]} 7. e4 {[%emt 0:06:30]} d6 {[%emt 0:02:30]} 8. Bd3 {[%emt 0:03:30]} O-O {[%emt 0:01:30]} 9. O-O {[%emt 0:00:30]} bxc4 {[%emt 0:03:30]} 10. bxc4 {[%emt 0:00:30]} Qb6 {[%emt 0:00:30]} 11. Qc2 {[%emt 0:02:30]} Re8 {[%emt 0:06:30]} 12. Nc3 {[%emt 0:03:30]} Na6 {[%emt 0:01:30]} 13. a3 {[%emt 0:00:30]} Rab8 {[%emt 0:01:30]} 14. Rab1 {[%emt 0:01:30]} Nc7 {[%emt 0:01:30]} 15. e5 {[%emt 0:08:30]} Nd7 {[%emt 0:05:30]} 16. Ne4 {[%emt 0:08:30]} Qa6 {[%emt 0:05:30]} 17. exd6 {[%emt 0:03:30]} exd6 {[%emt 0:00:30]} 18. Bxg7 {[%emt 0:00:30]} Kxg7 {[%emt 0:00:30]} 19. Qc3+ {[%emt 0:01:30]} f6 {[%emt 0:00:30]} 20. Nfg5 {[%emt 0:05:30]} h6 {[%emt 0:05:30]} 21. Nh3 {[%emt 0:06:00]} Rf8 {[%emt 0:03:30]} 22. f4 {[%emt 0:01:49]} Ne8 {[%emt 0:05:30]} 23. g4 {[%emt 0:01:33]} Bc8 {[%emt 0:07:30]} 24. Rxb8 {[%emt 0:01:12]} Nxb8 {[%emt 0:00:30]} 25. Nhf2 {[%emt 0:00:32]} Kh7 {[%emt 0:02:30]} 26. h4 {[%emt 0:00:59]} f5 {[%emt 0:04:30]} 27. Ng3 {[%emt 0:03:05]} Ng7 {[%emt 0:04:30]} 28. h5 {[%emt 0:01:24]} gxh5 {[%emt 0:02:30]} 29. Rb1 {[%emt 0:01:54]} h4 {[%emt 0:03:30]} 30. Nxf5 {[%emt 0:02:54]} Bxf5 {[%emt 0:00:30]} 31. gxf5 {[%emt 0:00:24]} Kh8 {[%emt 0:11:01]} 32. f6 {[%emt 0:00:39]} Nh5 {[%emt 0:00:25]} 33. f7+ {[%emt 0:02:01]} Ng7 {[%emt 0:00:29]} 34. Qf6 {[%emt 0:00:17]} Rxf7 {[%emt 0:01:27]} 35. Rxb8+ {[%emt 0:00:30]} 1-0

[Event "8th Ali Ipek Tournament 2020"]
[Site "Ankara"]
[Date "2020.03.07"]
[Round "5.14"]
[White "Ada, Isa"]
[Black "Aydin, Aytac"]
[Result "0-1"]
[ECO "D13"]
[WhiteElo "1366"]
[BlackElo "1652"]
[Annotator "NA RC"]
[PlyCount "75"]
[EventDate "2020.03.04"]
[EventType "swiss"]
[EventCountry "TUR"]
[SourceTitle "playchess.com"]
[Source "ChessBase"]
[SourceQuality "1"]
[TimeControl "5400+30"]

1. d4 {[%emt 0:00:30]} d5 {[%emt 0:00:30]} 2. g3 {[%emt 0:00:00]} Nf6 {[%emt 0:02:30]} 3. Bg2 {[%emt 0:00:00]} Bf5 {[%emt 0:01:30]} 4. c4 {[%emt 0:02:30]} c6 {[%emt 0:02:30]} 5. cxd5 {[%emt 0:05:30]} cxd5 {[%emt 0:00:30]} 6. Nc3 {[%emt 0:01:30]} e6 {[%emt 0:01:30]} 7. Nf3 {[%emt 0:00:00]} Nc6 {[%emt 0:04:30]} 8. O-O {[%emt 0:02:00]} Be7 {[%emt 0:00:30]} 9. Bf4 {[%emt 0:07:30]} h6 {[%emt 0:02:30]} 10. a3 {[%emt 0:04:30]} O-O {[%emt 0:01:30]} 11. Rc1 {[%emt 0:06:30]} Rc8 {[%emt 0:02:30]} 12. b4 {[%emt 0:08:30]} Bd6 {[%emt 0:22:30]} 13. Bxd6 {[%emt 0:00:30]} Qxd6 {[%emt 0:00:30]} 14. Na4 {[%emt 0:08:30]} b6 {[%emt 0:00:30]} 15. Nc3 {[%emt 0:00:30]} Ne4 {[%emt 0:10:30]} 16. e3 {[%emt 0:11:30]} Nxc3 {[%emt 0:02:30]} 17. Rxc3 {[%emt 0:00:00]} Ne7 {[%emt 0:00:00]} 18. Rxc8 {[%emt 0:06:00]} Rxc8 {[%emt 0:00:00]} 19. Qa4 {[%emt 0:02:30]} Bd3 {[%emt 0:08:30]} 20. Re1 {[%emt 0:02:30]} Qc7 {[%emt 0:02:30]} 21. Ne5 {[%emt 0:00:00]} Bf5 {[%emt 0:02:30]} 22. Bf1 {[%emt 0:05:00]} Qc3 {[%emt 0:00:00]} 23. Re2 {[%emt 0:13:24]} Qc1 {[%emt 0:11:00]} 24. g4 {[%emt 0:02:38]} Be4 {[%emt 0:00:30]} 25. f3 {[%emt 0:00:30]} Bh7 {[%emt 0:00:30]} 26. Qxa7 {[%emt 0:00:30]} Qc7 {[%emt 0:04:16]} 27. Qxc7 {[%emt 0:01:31]} Rxc7 {[%emt 0:00:02]} 28. Rb2 {[%emt 0:02:21]} f6 {[%emt 0:00:16]} 29. Nd3 {[%emt 0:00:51]} Rc3 {[%emt 0:00:18]} 30. Nf2 {[%emt 0:02:14]} Rxa3 {[%emt 0:00:27]} 31. e4 {[%emt 0:00:33]} Rxf3 {[%emt 0:01:11]} 32. Bg2 {[%emt 0:00:35]} Rc3 {[%emt 0:00:21]} 33. b5 {[%emt 0:00:49]} Rc1+ {[%emt 0:00:37]} 34. Bf1 {[%emt 0:01:15]} dxe4 {[%emt 0:00:09]} 35. Re2 {[%emt 0:00:21]} f5 {[%emt 0:00:39]} 36. gxf5 {[%emt 0:00:25]} exf5 {[%emt 0:00:30]} 37. Rd2 {[%emt 0:02:25]} e3 {[%emt 0:00:30]} 38. Rd1 {[%emt 0:00:00]} 0-1

[Event "8th Ali Ipek Tournament 2020"]
[Site "Ankara"]
[Date "2020.03.07"]
[Round "5.17"]
[White "Simsek, Ayaz"]
[Black "Nazli, Sertan"]
[Result "1/2-1/2"]
[ECO "C90"]
[WhiteElo "1055"]
[BlackElo "1745"]
[Annotator "NA RC"]
[PlyCount "71"]
[EventDate "2020.03.04"]
[EventType "swiss"]
[EventCountry "TUR"]
[SourceTitle "playchess.com"]
[Source "ChessBase"]
[SourceQuality "1"]
[TimeControl "5400+30"]

1. e4 {[%emt 0:00:30]} e5 {[%emt 0:00:30]} 2. Nf3 {[%emt 0:00:30]} Nc6 {[%emt 0:00:30]} 3. Bb5 {[%emt 0:00:00]} a6 {[%emt 0:00:30]} 4. Ba4 {[%emt 0:00:00]} Nf6 {[%emt 0:00:00]} 5. d3 {[%emt 0:00:00]} b5 {[%emt 0:00:00]} 6. Bb3 {[%emt 0:00:00]} Be7 {[%emt 0:00:00]} 7. c3 {[%emt 0:00:30]} d6 {[%emt 0:00:00]} 8. O-O {[%emt 0:00:30]} O-O {[%emt 0:00:00]} 9. Nbd2 {[%emt 0:00:30]} Na5 {[%emt 0:00:00]} 10. Bc2 {[%emt 0:00:30]} c5 {[%emt 0:00:00]} 11. Re1 {[%emt 0:00:30]} Nc6 {[%emt 0:00:00]} 12. Nf1 {[%emt 0:00:30]} h6 {[%emt 0:01:30]} 13. Ng3 {[%emt 0:00:30]} Re8 {[%emt 0:00:00]} 14. Be3 {[%emt 0:00:30]} Be6 {[%emt 0:01:00]} 15. d4 {[%emt 0:02:30]} cxd4 {[%emt 0:01:30]} 16. cxd4 {[%emt 0:00:30]} Bg4 {[%emt 0:00:30]} 17. dxe5 {[%emt 0:02:30]} Nxe5 {[%emt 0:05:30]} 18. Bf4 {[%emt 0:03:30]} Bf8 {[%emt 0:03:30]} 19. Bxe5 {[%emt 0:01:30]} dxe5 {[%emt 0:00:30]} 20. h3 {[%emt 0:00:30]} Be6 {[%emt 0:14:30]} 21. Nxe5 {[%emt 0:03:30]} Bd6 {[%emt 0:06:30]} 22. Nc6 {[%emt 0:04:30]} Qc7 {[%emt 0:01:30]} 23. e5 {[%emt 0:02:30]} Bc5 {[%emt 0:00:30]} 24. exf6 {[%emt 0:01:30]} Qxg3 {[%emt 0:05:30]} 25. Nd4 {[%emt 0:12:30]} Qh4 {[%emt 0:13:30]} 26. Qd3 {[%emt 0:14:30]} Qxf6 {[%emt 0:04:30]} 27. Nf3 {[%emt 0:04:30]} g6 {[%emt 0:00:30]} 28. Qc3 {[%emt 0:03:30]} Qxc3 {[%emt 0:06:30]} 29. bxc3 {[%emt 0:00:30]} Ba3 {[%emt 0:01:30]} 30. Rab1 {[%emt 0:02:30]} Rac8 {[%emt 0:01:30]} 31. Re3 {[%emt 0:04:30]} b4 {[%emt 0:01:30]} 32. cxb4 {[%emt 0:01:30]} Rxc2 {[%emt 0:03:30]} 33. Rxa3 {[%emt 0:00:30]} Bxa2 {[%emt 0:00:00]} 34. Re1 {[%emt 0:03:30]} Rb8 {[%emt 0:03:00]} 35. Re4 {[%emt 0:04:30]} Bc4 {[%emt 0:03:30]} 36. Ne5 {[%emt 0:03:30]} 1/2-1/2

[Event "8th Ali Ipek Tournament 2020"]
[Site "Ankara"]
[Date "2020.03.07"]
[Round "5.18"]
[White "Banci, Dogancan"]
[Black "Bayramiclilar, Yusuf Ruzgar"]
[Result "1/2-1/2"]
[ECO "B85"]
[WhiteElo "1634"]
[BlackElo "1435"]
[Annotator "NA RC"]
[PlyCount "121"]
[EventDate "2020.03.04"]
[EventType "swiss"]
[EventCountry "TUR"]
[SourceTitle "playchess.com"]
[Source "ChessBase"]
[SourceQuality "1"]
[TimeControl "5400+30"]

1. e4 {[%emt 0:00:30]} c5 {[%emt 0:00:30]} 2. Nc3 {[%emt 0:00:00]} e6 {[%emt 0:00:00]} 3. Nf3 {[%emt 0:01:00]} Nc6 {[%emt 0:00:00]} 4. d4 {[%emt 0:00:00]} cxd4 {[%emt 0:00:30]} 5. Nxd4 {[%emt 0:00:00]} a6 {[%emt 0:00:00]} 6. Be3 {[%emt 0:11:30]} d6 {[%emt 0:00:00]} 7. Be2 {[%emt 0:03:30]} Nf6 {[%emt 0:00:30]} 8. O-O {[%emt 0:02:30]} Be7 {[%emt 0:00:30]} 9. a4 {[%emt 0:07:30]} O-O {[%emt 0:00:30]} 10. Kh1 {[%emt 0:03:30]} Nxd4 {[%emt 0:00:00]} 11. Bxd4 {[%emt 0:00:30]} b6 {[%emt 0:00:00]} 12. f4 {[%emt 0:08:30]} Bb7 {[%emt 0:00:30]} 13. Bf3 {[%emt 0:00:30]} Qc7 {[%emt 0:00:30]} 14. Qe1 {[%emt 0:10:30]} e5 {[%emt 0:00:30]} 15. Be3 {[%emt 0:00:30]} Bc6 {[%emt 0:01:30]} 16. Qf2 {[%emt 0:07:30]} Qb7 {[%emt 0:02:30]} 17. Bxb6 {[%emt 0:07:30]} Nxe4 {[%emt 0:00:30]} 18. Nxe4 {[%emt 0:02:30]} Bxe4 {[%emt 0:00:30]} 19. Bxe4 {[%emt 0:00:30]} Qxe4 {[%emt 0:00:00]} 20. c3 {[%emt 0:01:30]} Qc6 {[%emt 0:05:00]} 21. a5 {[%emt 0:03:30]} Rab8 {[%emt 0:01:30]} 22. Qe2 {[%emt 0:03:30]} Bd8 {[%emt 0:00:30]} 23. fxe5 {[%emt 0:05:30]} dxe5 {[%emt 0:00:30]} 24. Qxe5 {[%emt 0:02:05]} Bxb6 {[%emt 0:00:30]} 25. axb6 {[%emt 0:00:00]} Rxb6 {[%emt 0:00:00]} 26. b4 {[%emt 0:02:49]} Rb5 {[%emt 0:01:00]} 27. Qg3 {[%emt 0:02:12]} Rc8 {[%emt 0:00:30]} 28. Qf3 {[%emt 0:02:45]} Qxf3 {[%emt 0:06:30]} 29. Rxf3 {[%emt 0:00:02]} Ra8 {[%emt 0:01:30]} 30. Rd3 {[%emt 0:03:32]} Kf8 {[%emt 0:00:00]} 31. Kg1 {[%emt 0:01:15]} a5 {[%emt 0:00:00]} 32. Kf2 {[%emt 0:03:01]} g6 {[%emt 0:04:30]} 33. Re3 {[%emt 0:02:12]} Kg7 {[%emt 0:00:30]} 34. Ke2 {[%emt 0:00:22]} Rbb8 {[%emt 0:04:30]} 35. bxa5 {[%emt 0:01:09]} Rb5 {[%emt 0:00:00]} 36. a6 {[%emt 0:02:10]} Rb6 {[%emt 0:00:00]} 37. a7 {[%emt 0:00:41]} Rb7 {[%emt 0:00:30]} 38. c4 {[%emt 0:01:00]} Raxa7 {[%emt 0:00:00]} 39. Rxa7 {[%emt 0:00:15]} Rxa7 {[%emt 0:00:00]} 40. Rc3 {[%emt 0:00:19]} Kf6 {[%emt 0:00:30]} 41. Rc2 {[%emt 0:00:34]} Ke5 {[%emt 0:00:30]} 42. Kd3 {[%emt 0:01:04]} Ra3+ {[%emt 0:02:30]} 43. Ke2 {[%emt 0:00:06]} Kd4 {[%emt 0:05:30]} 44. c5 {[%emt 0:00:38]} Ra7 {[%emt 0:01:30]} 45. c6 {[%emt 0:00:40]} Rc7 {[%emt 0:00:00]} 46. Kf3 {[%emt 0:00:47]} Kd5 {[%emt 0:00:00]} 47. Kf4 {[%emt 0:00:23]} f6 {[%emt 0:02:30]} 48. Re2 {[%emt 0:00:26]} Rxc6 {[%emt 0:00:30]} 49. Re7 {[%emt 0:00:11]} h5 {[%emt 0:00:30]} 50. h4 {[%emt 0:00:54]} Rc4+ {[%emt 0:01:30]} 51. Kg3 {[%emt 0:00:06]} Rg4+ {[%emt 0:00:30]} 52. Kh3 {[%emt 0:00:07]} f5 {[%emt 0:00:30]} 53. g3 {[%emt 0:01:17]} Re4 {[%emt 0:00:30]} 54. Rg7 {[%emt 0:00:11]} Re6 {[%emt 0:00:00]} 55. Ra7 {[%emt 0:00:28]} Ke4 {[%emt 0:01:00]} 56. Ra4+ {[%emt 0:00:22]} Kf3 {[%emt 0:00:00]} 57. Ra3+ {[%emt 0:00:55]} Re3 {[%emt 0:00:00]} 58. Ra6 {[%emt 0:00:33]} Kf2 {[%emt 0:03:30]} 59. Ra2+ {[%emt 0:00:41]} Re2 {[%emt 0:00:30]} 60. Ra6 {[%emt 0:00:17]} Re3 {[%emt 0:05:30]} 61. Ra2+ {[%emt 0:00:09]} 1/2-1/2

[Event "8th Ali Ipek Tournament 2020"]
[Site "Ankara"]
[Date "2020.03.07"]
[Round "5.19"]
[White "Firat, Mehmet Bugra"]
[Black "Ari, Hasancan"]
[Result "1/2-1/2"]
[ECO "B15"]
[WhiteElo "1601"]
[BlackElo "1399"]
[Annotator "NA RC"]
[PlyCount "105"]
[EventDate "2020.03.04"]
[EventType "swiss"]
[EventCountry "TUR"]
[SourceTitle "playchess.com"]
[Source "ChessBase"]
[SourceQuality "1"]
[TimeControl "5400+30"]

1. e4 {[%emt 0:00:30]} c6 {[%emt 0:00:30]} 2. d4 {[%emt 0:00:30]} d5 {[%emt 0:00:30]} 3. Nc3 {[%emt 0:00:00]} dxe4 {[%emt 0:00:30]} 4. Nxe4 {[%emt 0:00:00]} Nf6 {[%emt 0:00:00]} 5. Nxf6+ {[%emt 0:04:30]} exf6 {[%emt 0:00:00]} 6. Nf3 {[%emt 0:01:30]} Bg4 {[%emt 0:01:30]} 7. Be2 {[%emt 0:01:30]} Bd6 {[%emt 0:00:30]} 8. O-O {[%emt 0:00:30]} O-O {[%emt 0:01:30]} 9. h3 {[%emt 0:03:30]} Bh5 {[%emt 0:00:30]} 10. Nh4 {[%emt 0:00:30]} Bg6 {[%emt 0:08:30]} 11. Nxg6 {[%emt 0:00:30]} fxg6 {[%emt 0:00:30]} 12. b3 {[%emt 0:00:00]} Qc7 {[%emt 0:03:30]} 13. c4 {[%emt 0:05:00]} Rd8 {[%emt 0:00:30]} 14. Bb2 {[%emt 0:02:30]} c5 {[%emt 0:01:30]} 15. d5 {[%emt 0:01:30]} Nd7 {[%emt 0:01:30]} 16. Bg4 {[%emt 0:02:30]} f5 {[%emt 0:01:30]} 17. Bf3 {[%emt 0:00:30]} Ne5 {[%emt 0:00:30]} 18. Re1 {[%emt 0:01:30]} Re8 {[%emt 0:00:30]} 19. Be2 {[%emt 0:02:30]} Nf7 {[%emt 0:04:30]} 20. Qd3 {[%emt 0:02:30]} Ng5 {[%emt 0:02:30]} 21. Bf3 {[%emt 0:01:30]} Qd7 {[%emt 0:03:30]} 22. Qc3 {[%emt 0:03:30]} Ne4 {[%emt 0:02:30]} 23. Bxe4 {[%emt 0:00:30]} fxe4 {[%emt 0:00:30]} 24. Re2 {[%emt 0:03:30]} Be5 {[%emt 0:01:30]} 25. Qc2 {[%emt 0:00:30]} Qf5 {[%emt 0:00:30]} 26. Bxe5 {[%emt 0:00:30]} Rxe5 {[%emt 0:00:30]} 27. Rae1 {[%emt 0:01:30]} Rae8 {[%emt 0:00:30]} 28. Re3 {[%emt 0:00:00]} Qf4 {[%emt 0:04:30]} 29. Qd1 {[%emt 0:02:00]} R5e7 {[%emt 0:03:30]} 30. Qe2 {[%emt 0:03:30]} Qh4 {[%emt 0:03:30]} 31. Qd2 {[%emt 0:01:30]} Qf4 {[%emt 0:01:30]} 32. Qc2 {[%emt 0:05:30]} Qh4 {[%emt 0:00:30]} 33. a3 {[%emt 0:02:30]} a5 {[%emt 0:01:30]} 34. Qd2 {[%emt 0:03:30]} Rf7 {[%emt 0:01:30]} 35. f3 {[%emt 0:01:30]} Rfe7 {[%emt 0:00:30]} 36. d6 {[%emt 0:02:30]} Rd7 {[%emt 0:03:30]} 37. Rxe4 {[%emt 0:01:30]} Rxe4 {[%emt 0:00:30]} 38. fxe4 {[%emt 0:00:00]} Rxd6 {[%emt 0:00:30]} 39. Qxa5 {[%emt 0:01:00]} Ra6 {[%emt 0:00:30]} 40. Qc3 {[%emt 0:00:30]} Rxa3 {[%emt 0:00:30]} 41. e5 {[%emt 0:00:30]} Rxb3 {[%emt 0:00:30]} 42. Qd2 {[%emt 0:00:30]} Qd4+ {[%emt 0:00:00]} 43. Qxd4 {[%emt 0:00:30]} cxd4 {[%emt 0:00:00]} 44. Rd1 {[%emt 0:00:30]} d3 {[%emt 0:00:00]} 45. Kf2 {[%emt 0:00:30]} Kf7 {[%emt 0:00:00]} 46. Ke3 {[%emt 0:00:30]} Ke6 {[%emt 0:00:30]} 47. Ke4 {[%emt 0:01:30]} b6 {[%emt 0:01:30]} 48. Kd4 {[%emt 0:03:30]} g5 {[%emt 0:02:30]} 49. Ke4 {[%emt 0:00:00]} h5 {[%emt 0:00:00]} 50. Rd2 {[%emt 0:01:00]} Rc3 {[%emt 0:02:00]} 51. Kd4 {[%emt 0:00:00]} Rc2 {[%emt 0:00:30]} 52. Rxd3 {[%emt 0:00:00]} Rxg2 {[%emt 0:00:00]} 53. Rb3 {[%emt 0:00:30]} 1/2-1/2